[Event "Titled Tuesday Blitz June 20 Late 2023"]
[White "Buscar, Michael"]
[Black "Fedotov, Nikita"]
[WhiteFideId "2603616"]
[BlackFideId "24161446"]
[WhiteElo "2010"]
[BlackElo "2211"]
[Result "1-0"]
[Round "4"]
[TimeControl "180+2"]
[Date "2023.06.20"]
[WhiteClock "0:00:04"]
[BlackClock "0:00:00"]
[Board "160"]

1. d4 {[%clk 0:03:00]}  Nf6 {[%clk 0:02:54]} 2. c4 {[%clk 0:02:59]}  c5 {[%clk 0:02:54]} 3. d5 {[%clk 0:02:59]}  b5 {[%clk 0:02:55]} 4. cxb5 {[%clk 0:02:59]}  a6 {[%clk 0:02:55]} 5. bxa6 {[%clk 0:03:00]}  g6 {[%clk 0:02:55]} 6. g3 {[%clk 0:03:01]}  Bg7 {[%clk 0:02:55]} 7. Bg2 {[%clk 0:03:01]}  O-O {[%clk 0:02:54]} 8. Nf3 {[%clk 0:02:59]}  d6 {[%clk 0:02:54]} 9. Nfd2 {[%clk 0:02:59]}  Nxa6 {[%clk 0:02:52]} 10. Nc3 {[%clk 0:02:57]}  Nb4 {[%clk 0:02:49]} 11. O-O {[%clk 0:02:56]}  Bf5 {[%clk 0:02:45]} 12. e4 {[%clk 0:02:54]}  Bc8 {[%clk 0:02:44]} 13. Nc4 {[%clk 0:02:49]}  Ba6 {[%clk 0:02:43]} 14. Qe2 {[%clk 0:02:29]}  Nd7 {[%clk 0:02:38]} 15. Bd2 {[%clk 0:02:24]}  Nb6 {[%clk 0:02:33]} 16. b3 {[%clk 0:02:24]}  Nc2 {[%clk 0:02:33]} 17. Rac1 {[%clk 0:02:17]}  Nd4 {[%clk 0:02:33]} 18. Qd3 {[%clk 0:02:17]}  e6 {[%clk 0:02:26]} 19. Rfd1 {[%clk 0:02:06]}  Kh8 {[%clk 0:01:48]} 20. Ne2 {[%clk 0:01:46]}  f5 {[%clk 0:01:37]} 21. Nxd4 {[%clk 0:01:21]}  Bxd4 {[%clk 0:01:37]} 22. Bc3 {[%clk 0:01:19]}  Nxc4 {[%clk 0:01:18]} 23. bxc4 {[%clk 0:00:55]}  Bxc3 {[%clk 0:01:16]} 24. Qxc3+ {[%clk 0:00:54]}  e5 {[%clk 0:01:17]} 25. f4 {[%clk 0:00:47]}  Re8 {[%clk 0:01:05]} 26. Re1 {[%clk 0:00:42]}  Qf6 {[%clk 0:01:01]} 27. Rc2 {[%clk 0:00:38]}  Bc8 {[%clk 0:00:55]} 28. Rce2 {[%clk 0:00:35]}  fxe4 {[%clk 0:00:52]} 29. Bxe4 {[%clk 0:00:29]}  Bg4 {[%clk 0:00:52]} 30. Rf2 {[%clk 0:00:28]}  Kg7 {[%clk 0:00:44]} 31. Ref1 {[%clk 0:00:17]}  Ra7 {[%clk 0:00:28]} 32. f5 {[%clk 0:00:15]}  g5 {[%clk 0:00:27]} 33. Bg2 {[%clk 0:00:14]}  Rea8 {[%clk 0:00:26]} 34. h3 {[%clk 0:00:14]}  Bh5 {[%clk 0:00:26]} 35. g4 {[%clk 0:00:13]}  Be8 {[%clk 0:00:26]} 36. Qb3 {[%clk 0:00:11]}  Ba4 {[%clk 0:00:22]} 37. Qb6 {[%clk 0:00:10]}  Bd7 {[%clk 0:00:20]} 38. Qb3 {[%clk 0:00:08]}  Kf7 {[%clk 0:00:20]} 39. Be4 {[%clk 0:00:08]}  Ke7 {[%clk 0:00:20]} 40. Bb1 {[%clk 0:00:08]}  Ra3 {[%clk 0:00:21]} 41. Qb7 {[%clk 0:00:06]}  R8a7 {[%clk 0:00:21]} 42. Qb6 {[%clk 0:00:07]}  R3a6 {[%clk 0:00:21]} 43. Qb8 {[%clk 0:00:07]}  Ra8 {[%clk 0:00:21]} 44. Qb2 {[%clk 0:00:07]}  Ra3 {[%clk 0:00:19]} 45. Rf3 {[%clk 0:00:07]}  R3a4 {[%clk 0:00:20]} 46. Rc1 {[%clk 0:00:06]}  h5 {[%clk 0:00:18]} 47. Rb3 {[%clk 0:00:06]}  hxg4 {[%clk 0:00:18]} 48. hxg4 {[%clk 0:00:07]}  Qh6 {[%clk 0:00:17]} 49. Qh2 {[%clk 0:00:06]}  Qg7 {[%clk 0:00:11]} 50. Rh3 {[%clk 0:00:05]}  Kd8 {[%clk 0:00:03]} 51. Rh8+ {[%clk 0:00:05]}  Kc7 {[%clk 0:00:03]} 52. Rh7 {[%clk 0:00:05]}  Qf6 {[%clk 0:00:03]} 53. Qh6 {[%clk 0:00:05]}  Qd8 {[%clk 0:00:03]} 54. Qe6 {[%clk 0:00:05]}  Ra3 {[%clk 0:00:02]} 55. f6 {[%clk 0:00:05]}  Rg3+ {[%clk 0:00:02]} 56. Kf2 {[%clk 0:00:05]}  Rf3+ {[%clk 0:00:03]} 57. Kxf3 {[%clk 0:00:05]}  Ra3+ {[%clk 0:00:02]} 58. Kg2 {[%clk 0:00:05]}  Ra7 {[%clk 0:00:02]} 59. Bf5 {[%clk 0:00:05]}  Kb6 {[%clk 0:00:01]} 60. Rxd7 {[%clk 0:00:05]}  Qh8 {[%clk 0:00:01]} 61. Rxa7 {[%clk 0:00:05]}  Qh4 {[%clk 0:00:00]} 62. Qxd6+ {[%clk 0:00:04]} 1-0


[Site "https://www.chess.com"]

[Event "Titled Tuesday Blitz June 20 Late 2023"]
[White "Shuvalov, Evgenij"]
[Black "Schut, Han"]
[WhiteFideId "4187237"]
[BlackFideId "1005561"]
[WhiteElo "2080"]
[BlackElo "2024"]
[Result "1/2-1/2"]
[Round "4"]
[TimeControl "180+2"]
[Date "2023.06.20"]
[WhiteClock "0:00:32"]
[BlackClock "0:00:17"]
[Board "161"]

1. d4 {[%clk 0:03:00]}  Nf6 {[%clk 0:02:59]} 2. c4 {[%clk 0:03:00]}  g6 {[%clk 0:03:00]} 3. Nc3 {[%clk 0:02:59]}  d5 {[%clk 0:03:00]} 4. cxd5 {[%clk 0:02:59]}  Nxd5 {[%clk 0:03:01]} 5. e4 {[%clk 0:02:59]}  Nxc3 {[%clk 0:03:01]} 6. bxc3 {[%clk 0:03:00]}  Bg7 {[%clk 0:03:01]} 7. Nf3 {[%clk 0:03:01]}  c5 {[%clk 0:03:02]} 8. Rb1 {[%clk 0:03:01]}  O-O {[%clk 0:02:59]} 9. Be2 {[%clk 0:03:01]}  Nc6 {[%clk 0:02:58]} 10. d5 {[%clk 0:03:00]}  Ne5 {[%clk 0:02:58]} 11. Nxe5 {[%clk 0:02:58]}  Bxe5 {[%clk 0:02:59]} 12. Qd2 {[%clk 0:02:58]}  e6 {[%clk 0:02:58]} 13. f4 {[%clk 0:02:58]}  Bc7 {[%clk 0:02:58]} 14. O-O {[%clk 0:02:53]}  exd5 {[%clk 0:02:56]} 15. exd5 {[%clk 0:02:54]}  Ba5 {[%clk 0:02:38]} 16. d6 {[%clk 0:02:53]}  Bf5 {[%clk 0:02:29]} 17. Rxb7 {[%clk 0:02:48]}  Bb6 {[%clk 0:02:22]} 18. g4 {[%clk 0:02:42]}  Be4 {[%clk 0:02:19]} 19. Rxb6 {[%clk 0:02:38]}  axb6 {[%clk 0:02:19]} 20. f5 {[%clk 0:02:38]}  Qh4 {[%clk 0:02:06]} 21. Qh6 {[%clk 0:02:08]}  Qxh6 {[%clk 0:01:59]} 22. Bxh6 {[%clk 0:02:09]}  Rfd8 {[%clk 0:01:54]} 23. Rd1 {[%clk 0:02:05]}  f6 {[%clk 0:01:51]} 24. Bc4+ {[%clk 0:01:58]}  Kh8 {[%clk 0:01:48]} 25. fxg6 {[%clk 0:01:56]}  hxg6 {[%clk 0:01:48]} 26. Bf4 {[%clk 0:01:54]}  Bc6 {[%clk 0:01:34]} 27. g5 {[%clk 0:01:50]}  Kg7 {[%clk 0:01:33]} 28. h4 {[%clk 0:01:44]}  b5 {[%clk 0:01:30]} 29. Be6 {[%clk 0:01:44]}  Bd7 {[%clk 0:01:25]} 30. Bd5 {[%clk 0:01:40]}  Ra6 {[%clk 0:01:22]} 31. Kf2 {[%clk 0:01:28]}  Bg4 {[%clk 0:01:19]} 32. Rd2 {[%clk 0:01:27]}  Rdxd6 {[%clk 0:01:17]} 33. Bxd6 {[%clk 0:01:26]}  Rxd6 {[%clk 0:01:18]} 34. Ke3 {[%clk 0:01:23]}  fxg5 {[%clk 0:01:09]} 35. hxg5 {[%clk 0:01:24]}  c4 {[%clk 0:01:07]} 36. Bb7 {[%clk 0:01:15]}  Rb6 {[%clk 0:00:47]} 37. Be4 {[%clk 0:01:08]}  b4 {[%clk 0:00:46]} 38. Rb2 {[%clk 0:01:01]}  b3 {[%clk 0:00:40]} 39. axb3 {[%clk 0:01:01]}  cxb3 {[%clk 0:00:40]} 40. Bd5 {[%clk 0:00:56]}  Bd1 {[%clk 0:00:36]} 41. Kd4 {[%clk 0:00:53]}  Kf8 {[%clk 0:00:30]} 42. c4 {[%clk 0:00:53]}  Ke7 {[%clk 0:00:28]} 43. c5 {[%clk 0:00:53]}  Rb4+ {[%clk 0:00:27]} 44. Kc3 {[%clk 0:00:50]}  Rg4 {[%clk 0:00:27]} 45. Bxb3 {[%clk 0:00:47]}  Bxb3 {[%clk 0:00:21]} 46. Rxb3 {[%clk 0:00:48]}  Rxg5 {[%clk 0:00:21]} 47. Kc4 {[%clk 0:00:48]}  Rg1 {[%clk 0:00:18]} 48. Kd5 {[%clk 0:00:46]}  Kf6 {[%clk 0:00:18]} 49. c6 {[%clk 0:00:44]}  Rd1+ {[%clk 0:00:14]} 50. Kc5 {[%clk 0:00:43]}  Rc1+ {[%clk 0:00:15]} 51. Kb6 {[%clk 0:00:43]}  g5 {[%clk 0:00:15]} 52. c7 {[%clk 0:00:43]}  g4 {[%clk 0:00:14]} 53. Kb7 {[%clk 0:00:43]}  Kf5 {[%clk 0:00:13]} 54. c8=Q+ {[%clk 0:00:36]}  Rxc8 {[%clk 0:00:13]} 55. Kxc8 {[%clk 0:00:37]}  Kf4 {[%clk 0:00:14]} 56. Kd7 {[%clk 0:00:33]}  g3 {[%clk 0:00:14]} 57. Rb8 {[%clk 0:00:32]}  g2 {[%clk 0:00:14]} 58. Rg8 {[%clk 0:00:32]}  Kf3 {[%clk 0:00:15]} 59. Ke6 {[%clk 0:00:31]}  Kf2 {[%clk 0:00:16]} 60. Ke5 {[%clk 0:00:32]}  g1=Q {[%clk 0:00:16]} 61. Rxg1 {[%clk 0:00:32]}  Kxg1 {[%clk 0:00:17]} 1/2-1/2


[Site "https://www.chess.com"]

[Event "Titled Tuesday Blitz June 20 Late 2023"]
[White "Kornyukov, Alexey"]
[Black "FromTexas54"]
[WhiteFideId "4150457"]
[WhiteElo "2352"]
[BlackElo "2414"]
[Result "0-1"]
[Round "4"]
[TimeControl "180+2"]
[Date "2023.06.20"]
[WhiteClock "0:00:00"]
[BlackClock "0:00:10"]
[Board "164"]

1. d4 {[%clk 0:03:00]}  Nf6 {[%clk 0:02:58]} 2. c4 {[%clk 0:03:00]}  e6 {[%clk 0:02:59]} 3. Nc3 {[%clk 0:02:59]}  Bb4 {[%clk 0:02:59]} 4. f3 {[%clk 0:02:58]}  c5 {[%clk 0:02:53]} 5. d5 {[%clk 0:02:55]}  b5 {[%clk 0:02:53]} 6. e4 {[%clk 0:02:51]}  O-O {[%clk 0:02:53]} 7. e5 {[%clk 0:02:48]}  Ne8 {[%clk 0:02:53]} 8. f4 {[%clk 0:02:39]}  d6 {[%clk 0:02:42]} 9. Nf3 {[%clk 0:02:34]}  dxe5 {[%clk 0:02:29]} 10. fxe5 {[%clk 0:02:32]}  exd5 {[%clk 0:02:23]} 11. cxd5 {[%clk 0:02:28]}  c4 {[%clk 0:02:14]} 12. a4 {[%clk 0:01:51]}  Bg4 {[%clk 0:01:25]} 13. axb5 {[%clk 0:01:47]}  Nd7 {[%clk 0:01:24]} 14. Bf4 {[%clk 0:01:26]}  Nc7 {[%clk 0:01:23]} 15. Bxc4 {[%clk 0:01:22]}  Nb6 {[%clk 0:01:17]} 16. Qd4 {[%clk 0:00:53]}  Bxf3 {[%clk 0:01:00]} 17. gxf3 {[%clk 0:00:54]}  Qh4+ {[%clk 0:00:59]} 18. Ke2 {[%clk 0:00:26]}  Bxc3 {[%clk 0:00:52]} 19. bxc3 {[%clk 0:00:21]}  Ncxd5 {[%clk 0:00:41]} 20. Bxd5 {[%clk 0:00:15]}  Nxd5 {[%clk 0:00:42]} 21. Be3 {[%clk 0:00:12]}  Qd8 {[%clk 0:00:23]} 22. Rhd1 {[%clk 0:00:11]}  Nxe3 {[%clk 0:00:23]} 23. Qxd8 {[%clk 0:00:09]}  Rfxd8 {[%clk 0:00:21]} 24. Kxe3 {[%clk 0:00:10]}  Rdc8 {[%clk 0:00:19]} 25. Rd3 {[%clk 0:00:08]}  h5 {[%clk 0:00:18]} 26. Ra6 {[%clk 0:00:06]}  Rab8 {[%clk 0:00:17]} 27. Rxa7 {[%clk 0:00:04]}  Rxb5 {[%clk 0:00:17]} 28. h4 {[%clk 0:00:03]}  Rxe5+ {[%clk 0:00:16]} 29. Kf4 {[%clk 0:00:04]}  Re6 {[%clk 0:00:13]} 30. Rad7 {[%clk 0:00:01]}  Rf6+ {[%clk 0:00:12]} 31. Kg3 {[%clk 0:00:01]}  Rcc6 {[%clk 0:00:10]} 32. R7d5 {[%clk 0:00:00]}  g6 {[%clk 0:00:10]} 0-1


[Site "https://www.chess.com"]

[Event "Titled Tuesday Blitz June 20 Late 2023"]
[White "Santos Flores, Alberto"]
[Black "Ardila, Oscar Humberto"]
[WhiteFideId "3601234"]
[BlackFideId "4404742"]
[WhiteElo "2235"]
[BlackElo "1912"]
[Result "1-0"]
[Round "4"]
[TimeControl "180+2"]
[Date "2023.06.20"]
[WhiteClock "0:02:15"]
[BlackClock "0:02:09"]
[Board "168"]

1. e4 {[%clk 0:03:00]}  e5 {[%clk 0:02:59]} 2. Nf3 {[%clk 0:03:00]}  Nf6 {[%clk 0:02:59]} 3. Nxe5 {[%clk 0:02:58]}  d6 {[%clk 0:02:59]} 4. Nf3 {[%clk 0:02:58]}  Nxe4 {[%clk 0:02:59]} 5. d4 {[%clk 0:02:59]}  Be7 {[%clk 0:02:59]} 6. Bd3 {[%clk 0:02:59]}  d5 {[%clk 0:03:00]} 7. O-O {[%clk 0:02:58]}  Nc6 {[%clk 0:03:00]} 8. Re1 {[%clk 0:02:58]}  Nf6 {[%clk 0:02:59]} 9. h3 {[%clk 0:02:52]}  O-O {[%clk 0:02:59]} 10. c3 {[%clk 0:02:51]}  h6 {[%clk 0:02:58]} 11. Bf4 {[%clk 0:02:51]}  Be6 {[%clk 0:02:52]} 12. Nbd2 {[%clk 0:02:50]}  a6 {[%clk 0:02:47]} 13. Nf1 {[%clk 0:02:50]}  Qd7 {[%clk 0:02:45]} 14. Ng3 {[%clk 0:02:50]}  g5 {[%clk 0:02:41]} 15. Ne5 {[%clk 0:02:43]}  Qd8 {[%clk 0:02:27]} 16. Nxc6 {[%clk 0:02:42]}  bxc6 {[%clk 0:02:26]} 17. Be5 {[%clk 0:02:42]}  Nd7 {[%clk 0:02:23]} 18. Qh5 {[%clk 0:02:42]}  Nxe5 {[%clk 0:02:14]} 19. Rxe5 {[%clk 0:02:39]}  Kg7 {[%clk 0:02:14]} 20. Rxe6 {[%clk 0:02:24]}  Bf6 {[%clk 0:02:13]} 21. Nf5+ {[%clk 0:02:20]}  Kg8 {[%clk 0:02:10]} 22. Nxh6+ {[%clk 0:02:18]}  Kg7 {[%clk 0:02:10]} 23. Nf5+ {[%clk 0:02:18]}  Kg8 {[%clk 0:02:11]} 24. Ne7+ {[%clk 0:02:15]}  Kg7 {[%clk 0:02:09]} 25. Qh7# {[%clk 0:02:15]} 1-0


[Site "https://www.chess.com"]

[Event "Titled Tuesday Blitz June 20 Late 2023"]
[White "Sala, Giulia"]
[Black "Pan, Kevin"]
[WhiteFideId "2840451"]
[BlackFideId "30915708"]
[WhiteElo "1769"]
[BlackElo "2233"]
[Result "0-1"]
[Round "4"]
[TimeControl "180+2"]
[Date "2023.06.20"]
[WhiteClock "0:02:21"]
[BlackClock "0:01:47"]
[Board "170"]

1. d4 {[%clk 0:03:00]}  d5 {[%clk 0:02:56]} 2. Bf4 {[%clk 0:03:00]}  e6 {[%clk 0:02:57]} 3. e3 {[%clk 0:03:01]}  Nf6 {[%clk 0:02:57]} 4. Nf3 {[%clk 0:03:01]}  c5 {[%clk 0:02:58]} 5. Nbd2 {[%clk 0:03:00]}  Nc6 {[%clk 0:02:58]} 6. c3 {[%clk 0:03:00]}  Nh5 {[%clk 0:02:56]} 7. Bg5 {[%clk 0:02:58]}  f6 {[%clk 0:02:54]} 8. Bh4 {[%clk 0:02:58]}  g6 {[%clk 0:02:55]} 9. Bd3 {[%clk 0:02:57]}  Be7 {[%clk 0:02:52]} 10. Qe2 {[%clk 0:02:45]}  e5 {[%clk 0:02:35]} 11. dxe5 {[%clk 0:02:41]}  fxe5 {[%clk 0:02:34]} 12. Bxe7 {[%clk 0:02:41]}  Qxe7 {[%clk 0:02:35]} 13. e4 {[%clk 0:02:42]}  Nf4 {[%clk 0:02:32]} 14. Qf1 {[%clk 0:02:41]}  Be6 {[%clk 0:02:17]} 15. g3 {[%clk 0:02:39]}  Bh3 {[%clk 0:02:13]} 16. gxf4 {[%clk 0:02:36]}  Bxf1 {[%clk 0:02:11]} 17. Kxf1 {[%clk 0:02:29]}  dxe4 {[%clk 0:02:08]} 18. Nxe4 {[%clk 0:02:30]}  exf4 {[%clk 0:02:02]} 19. Re1 {[%clk 0:02:30]}  O-O-O {[%clk 0:02:01]} 20. Bc4 {[%clk 0:02:27]}  Qd7 {[%clk 0:01:47]} 21. Kg2 {[%clk 0:02:21]}  Qg4+ {[%clk 0:01:47]} 0-1


[Site "https://www.chess.com"]

[Event "Titled Tuesday Blitz June 20 Late 2023"]
[White "De Souza, Cristiano Gomes"]
[Black "Sadilek, Peter"]
[WhiteFideId "2151758"]
[BlackFideId "1616439"]
[WhiteElo "2068"]
[BlackElo "2227"]
[Result "0-1"]
[Round "4"]
[TimeControl "180+2"]
[Date "2023.06.20"]
[WhiteClock "0:02:21"]
[BlackClock "0:02:11"]
[Board "171"]

1. d4 {[%clk 0:03:00]}  e6 {[%clk 0:02:50]} 2. c4 {[%clk 0:03:00]}  Nf6 {[%clk 0:02:48]} 3. Nf3 {[%clk 0:02:59]}  Bb4+ {[%clk 0:02:48]} 4. Bd2 {[%clk 0:02:59]}  a5 {[%clk 0:02:49]} 5. g3 {[%clk 0:02:57]}  O-O {[%clk 0:02:49]} 6. Bg2 {[%clk 0:02:56]}  d5 {[%clk 0:02:49]} 7. b3 {[%clk 0:02:55]}  b6 {[%clk 0:02:46]} 8. O-O {[%clk 0:02:52]}  Ba6 {[%clk 0:02:47]} 9. cxd5 {[%clk 0:02:49]}  exd5 {[%clk 0:02:45]} 10. Ne5 {[%clk 0:02:48]}  c5 {[%clk 0:02:41]} 11. a3 {[%clk 0:02:45]}  Bxd2 {[%clk 0:02:40]} 12. Qxd2 {[%clk 0:02:44]}  Re8 {[%clk 0:02:35]} 13. Nc3 {[%clk 0:02:39]}  Ra7 {[%clk 0:02:25]} 14. Rfe1 {[%clk 0:02:36]}  Rae7 {[%clk 0:02:14]} 15. e3 {[%clk 0:02:29]}  Ne4 {[%clk 0:02:11]} 16. h4 {[%clk 0:02:21]}  Nxd2 {[%clk 0:02:11]} 0-1


[Site "https://www.chess.com"]

[Event "Titled Tuesday Blitz June 20 Late 2023"]
[White "Castella Garcia, Fausto"]
[Black "Chessadiction1990"]
[WhiteFideId "3501922"]
[WhiteElo "2245"]
[BlackElo "2210"]
[Result "1-0"]
[Round "4"]
[TimeControl "180+2"]
[Date "2023.06.20"]
[WhiteClock "0:01:48"]
[BlackClock "0:00:00"]
[Board "174"]

1. e4 {[%clk 0:03:00]}  c5 {[%clk 0:02:59]} 2. Nf3 {[%clk 0:03:00]}  d6 {[%clk 0:02:59]} 3. d4 {[%clk 0:03:00]}  cxd4 {[%clk 0:03:00]} 4. Nxd4 {[%clk 0:03:01]}  Nf6 {[%clk 0:03:00]} 5. Nc3 {[%clk 0:03:02]}  g6 {[%clk 0:03:01]} 6. f4 {[%clk 0:03:00]}  Nc6 {[%clk 0:02:58]} 7. Bb5 {[%clk 0:02:59]}  Bd7 {[%clk 0:02:53]} 8. Bxc6 {[%clk 0:02:58]}  Bxc6 {[%clk 0:02:40]} 9. e5 {[%clk 0:02:59]}  dxe5 {[%clk 0:02:32]} 10. fxe5 {[%clk 0:02:59]}  Nd5 {[%clk 0:02:26]} 11. e6 {[%clk 0:02:59]}  f6 {[%clk 0:01:59]} 12. Nxc6 {[%clk 0:02:54]}  bxc6 {[%clk 0:01:59]} 13. Nxd5 {[%clk 0:02:53]}  Qxd5 {[%clk 0:01:48]} 14. Qxd5 {[%clk 0:02:51]}  cxd5 {[%clk 0:01:48]} 15. Be3 {[%clk 0:02:51]}  Bg7 {[%clk 0:01:42]} 16. O-O-O {[%clk 0:02:50]}  O-O-O {[%clk 0:01:35]} 17. Bxa7 {[%clk 0:02:49]}  Rd6 {[%clk 0:01:16]} 18. Rhe1 {[%clk 0:02:43]}  f5 {[%clk 0:00:38]} 19. Bc5 {[%clk 0:02:37]}  Ra6 {[%clk 0:00:38]} 20. Kb1 {[%clk 0:02:28]}  Rd8 {[%clk 0:00:12]} 21. Bxe7 {[%clk 0:02:26]}  Re8 {[%clk 0:00:13]} 22. Ba3 {[%clk 0:02:22]}  Raxe6 {[%clk 0:00:13]} 23. Rxe6 {[%clk 0:02:18]}  Rxe6 {[%clk 0:00:14]} 24. c3 {[%clk 0:02:12]}  Re2 {[%clk 0:00:12]} 25. Rxd5 {[%clk 0:02:13]}  Rxg2 {[%clk 0:00:12]} 26. Bd6 {[%clk 0:02:10]}  Bh6 {[%clk 0:00:10]} 27. a4 {[%clk 0:02:08]}  f4 {[%clk 0:00:10]} 28. Rd3 {[%clk 0:02:05]}  g5 {[%clk 0:00:09]} 29. a5 {[%clk 0:02:06]}  Kb7 {[%clk 0:00:09]} 30. h3 {[%clk 0:01:58]}  Bg7 {[%clk 0:00:04]} 31. b4 {[%clk 0:01:56]}  Ka6 {[%clk 0:00:04]} 32. c4 {[%clk 0:01:55]}  Rb2+ {[%clk 0:00:03]} 33. Kc1 {[%clk 0:01:55]}  Ra2 {[%clk 0:00:00]} 34. Bc7 {[%clk 0:01:48]} 1-0


[Site "https://www.chess.com"]

[Event "Titled Tuesday Blitz June 20 Late 2023"]
[White "Cueto, Jonny"]
[Black "Manon-og, Ramon Jr."]
[WhiteFideId "3300145"]
[BlackFideId "5200776"]
[WhiteElo "2240"]
[BlackElo "2316"]
[Result "1-0"]
[Round "4"]
[TimeControl "180+2"]
[Date "2023.06.20"]
[WhiteClock "0:00:04"]
[BlackClock "0:00:00"]
[Board "176"]

1. d4 {[%clk 0:02:59]}  Nf6 {[%clk 0:02:59]} 2. Bf4 {[%clk 0:02:57]}  g6 {[%clk 0:03:00]} 3. Nc3 {[%clk 0:02:57]}  d5 {[%clk 0:03:00]} 4. e3 {[%clk 0:02:57]}  Bg7 {[%clk 0:03:00]} 5. h4 {[%clk 0:02:57]}  h5 {[%clk 0:03:00]} 6. Be2 {[%clk 0:02:57]}  O-O {[%clk 0:03:00]} 7. Nf3 {[%clk 0:02:57]}  c5 {[%clk 0:03:00]} 8. Nb5 {[%clk 0:02:58]}  Na6 {[%clk 0:02:54]} 9. c3 {[%clk 0:02:55]}  Ne4 {[%clk 0:02:48]} 10. O-O {[%clk 0:02:53]}  Bg4 {[%clk 0:02:37]} 11. a4 {[%clk 0:02:49]}  e6 {[%clk 0:02:30]} 12. Nd2 {[%clk 0:02:41]}  Qxh4 {[%clk 0:02:27]} 13. Nxe4 {[%clk 0:02:33]}  dxe4 {[%clk 0:02:28]} 14. Bxg4 {[%clk 0:02:24]}  hxg4 {[%clk 0:02:29]} 15. Bg3 {[%clk 0:02:11]}  Qh5 {[%clk 0:02:28]} 16. Qb3 {[%clk 0:02:11]}  Bf6 {[%clk 0:02:25]} 17. Nd6 {[%clk 0:02:04]}  cxd4 {[%clk 0:02:21]} 18. cxd4 {[%clk 0:02:00]}  Qd5 {[%clk 0:02:11]} 19. Qxd5 {[%clk 0:02:00]}  exd5 {[%clk 0:02:12]} 20. Nxb7 {[%clk 0:02:00]}  Rfc8 {[%clk 0:02:08]} 21. Rac1 {[%clk 0:02:00]}  Nb4 {[%clk 0:02:07]} 22. Nd6 {[%clk 0:01:18]}  Rd8 {[%clk 0:01:40]} 23. Rc7 {[%clk 0:01:17]}  Na6 {[%clk 0:01:22]} 24. Rb7 {[%clk 0:01:02]}  Rdb8 {[%clk 0:01:21]} 25. Rxf7 {[%clk 0:00:58]}  Bg7 {[%clk 0:01:16]} 26. Rd7 {[%clk 0:00:43]}  Rxb2 {[%clk 0:01:15]} 27. Nb5 {[%clk 0:00:44]}  Nb4 {[%clk 0:01:14]} 28. Rc1 {[%clk 0:00:41]}  a6 {[%clk 0:01:09]} 29. Rcc7 {[%clk 0:00:33]}  Bf8 {[%clk 0:01:09]} 30. Nd6 {[%clk 0:00:27]}  Nd3 {[%clk 0:00:52]} 31. Nc8 {[%clk 0:00:21]}  Rab8 {[%clk 0:00:46]} 32. Ne7+ {[%clk 0:00:21]}  Bxe7 {[%clk 0:00:46]} 33. Rxe7 {[%clk 0:00:21]}  Rb1+ {[%clk 0:00:24]} 34. Kh2 {[%clk 0:00:22]}  Rd8 {[%clk 0:00:13]} 35. Rg7+ {[%clk 0:00:21]}  Kh8 {[%clk 0:00:13]} 36. Rh7+ {[%clk 0:00:21]}  Kg8 {[%clk 0:00:14]} 37. Rcg7+ {[%clk 0:00:21]}  Kf8 {[%clk 0:00:14]} 38. Ra7 {[%clk 0:00:11]}  Kg8 {[%clk 0:00:15]} 39. Rhg7+ {[%clk 0:00:07]}  Kf8 {[%clk 0:00:15]} 40. Rxg6 {[%clk 0:00:06]}  Nxf2 {[%clk 0:00:12]} 41. Bxf2 {[%clk 0:00:05]}  Rb2 {[%clk 0:00:13]} 42. Bg3 {[%clk 0:00:06]}  Re2 {[%clk 0:00:13]} 43. Rh6 {[%clk 0:00:06]}  Kg8 {[%clk 0:00:12]} 44. Be5 {[%clk 0:00:05]}  g3+ {[%clk 0:00:11]} 45. Kxg3 {[%clk 0:00:05]}  Rxe3+ {[%clk 0:00:11]} 46. Kh2 {[%clk 0:00:04]}  Rh3+ {[%clk 0:00:00]} 47. Rxh3 {[%clk 0:00:04]} 1-0


[Site "https://www.chess.com"]

[Event "Titled Tuesday Blitz June 20 Late 2023"]
[White "Gardezi, Arsal"]
[Black "Zhukov, Maksim"]
[WhiteFideId "30949521"]
[BlackFideId "34181790"]
[WhiteElo "1906"]
[BlackElo "1925"]
[Result "1-0"]
[Round "4"]
[TimeControl "180+2"]
[Date "2023.06.20"]
[WhiteClock "0:02:25"]
[BlackClock "0:00:20"]
[Board "178"]

1. e4 {[%clk 0:03:00]}  c5 {[%clk 0:01:19]} 2. Nf3 {[%clk 0:02:58]}  d6 {[%clk 0:01:18]} 3. d4 {[%clk 0:02:57]}  cxd4 {[%clk 0:01:18]} 4. Nxd4 {[%clk 0:02:58]}  Nf6 {[%clk 0:01:19]} 5. Nc3 {[%clk 0:02:58]}  a6 {[%clk 0:01:19]} 6. f3 {[%clk 0:02:59]}  e5 {[%clk 0:01:19]} 7. Nb3 {[%clk 0:02:59]}  h5 {[%clk 0:01:19]} 8. Be3 {[%clk 0:02:57]}  Be6 {[%clk 0:01:18]} 9. Nd5 {[%clk 0:02:58]}  Bxd5 {[%clk 0:01:18]} 10. exd5 {[%clk 0:02:59]}  Nbd7 {[%clk 0:01:17]} 11. c4 {[%clk 0:02:57]}  Be7 {[%clk 0:01:16]} 12. Qd2 {[%clk 0:02:58]}  Rc8 {[%clk 0:01:16]} 13. Na5 {[%clk 0:02:57]}  Qc7 {[%clk 0:01:15]} 14. Rc1 {[%clk 0:02:56]}  Nb8 {[%clk 0:01:13]} 15. Qb4 {[%clk 0:02:50]}  b5 {[%clk 0:01:04]} 16. cxb5 {[%clk 0:02:46]}  Qd7 {[%clk 0:00:58]} 17. Rxc8+ {[%clk 0:02:43]}  Qxc8 {[%clk 0:00:59]} 18. bxa6 {[%clk 0:02:38]}  Nxa6 {[%clk 0:00:59]} 19. Qb5+ {[%clk 0:02:38]}  Qd7 {[%clk 0:00:50]} 20. Qxd7+ {[%clk 0:02:34]}  Kxd7 {[%clk 0:00:49]} 21. Bxa6 {[%clk 0:02:35]}  Nxd5 {[%clk 0:00:49]} 22. Bb5+ {[%clk 0:02:33]}  Kc7 {[%clk 0:00:46]} 23. Bd2 {[%clk 0:02:32]}  Rb8 {[%clk 0:00:43]} 24. a4 {[%clk 0:02:30]}  Nb6 {[%clk 0:00:30]} 25. O-O {[%clk 0:02:30]}  d5 {[%clk 0:00:30]} 26. Rc1+ {[%clk 0:02:29]}  Nc4 {[%clk 0:00:23]} 27. Nxc4 {[%clk 0:02:24]}  dxc4 {[%clk 0:00:23]} 28. Rxc4+ {[%clk 0:02:25]}  Kd8 {[%clk 0:00:23]} 29. Ba5+ {[%clk 0:02:24]}  Rb6 {[%clk 0:00:20]} 30. Bxb6# {[%clk 0:02:25]} 1-0


[Site "https://www.chess.com"]

[Event "Titled Tuesday Blitz June 20 Late 2023"]
[White "Winkels, Marcel"]
[Black "Rodriguez Polo, Mateo"]
[WhiteFideId "1003887"]
[BlackFideId "24509396"]
[WhiteElo "1900"]
[BlackElo "2117"]
[Result "0-1"]
[Round "4"]
[TimeControl "180+2"]
[Date "2023.06.20"]
[WhiteClock "0:00:44"]
[BlackClock "0:01:01"]
[Board "181"]

1. e4 {[%clk 0:03:00]}  e6 {[%clk 0:02:55]} 2. d4 {[%clk 0:03:00]}  d5 {[%clk 0:02:55]} 3. Nc3 {[%clk 0:03:00]}  Nf6 {[%clk 0:02:55]} 4. Bg5 {[%clk 0:02:59]}  Bb4 {[%clk 0:02:55]} 5. exd5 {[%clk 0:02:58]}  Qxd5 {[%clk 0:02:14]} 6. Nf3 {[%clk 0:02:56]}  Ne4 {[%clk 0:02:05]} 7. Qd3 {[%clk 0:02:53]}  Nxg5 {[%clk 0:01:55]} 8. O-O-O {[%clk 0:02:50]}  Bxc3 {[%clk 0:01:53]} 9. Qxc3 {[%clk 0:02:50]}  Nxf3 {[%clk 0:01:51]} 10. Bc4 {[%clk 0:02:44]}  Qd8 {[%clk 0:01:44]} 11. gxf3 {[%clk 0:02:43]}  O-O {[%clk 0:01:25]} 12. Rhg1 {[%clk 0:02:42]}  Qf6 {[%clk 0:01:24]} 13. h4 {[%clk 0:02:36]}  Nc6 {[%clk 0:01:23]} 14. Rg5 {[%clk 0:02:33]}  h6 {[%clk 0:01:19]} 15. Rg3 {[%clk 0:02:28]}  e5 {[%clk 0:01:15]} 16. dxe5 {[%clk 0:01:59]}  Nxe5 {[%clk 0:01:10]} 17. Rd5 {[%clk 0:01:43]}  Qf4+ {[%clk 0:01:08]} 18. Kb1 {[%clk 0:01:28]}  Qxc4 {[%clk 0:01:05]} 19. Qxe5 {[%clk 0:00:44]}  Qf1+ {[%clk 0:01:01]} 0-1


[Site "https://www.chess.com"]